Workbook

Sheet Bilance
A1: Zjednodušená měsíční bilance solární tepelné soustavy
A3: Akce: | I3: Vypracoval:
A4: Adresa: | I4: Datum:
A7: Příprava teplé vody | F7: Vytápění | K7: Bazén
B10: Měsíc | C10: Qp,TV [kWh/měs] | G10: Měsíc | H10: Qp,VYT [kWh/měs] | L10: Měsíc | M10: Qp,BAZ [kWh/měs] | Q10: Měsíční údaje jsou známé | V10: Měsíční údaje jsou známé | AA10: Měsíční údaje jsou známé
Q11: Vypočítat ze zadaných údajů | V11: Vypočítat ze zadaných údajů | AA11: Vypočítat ze zadaných údajů | AM11: tep | AN11: QTV | AO11: QVYT | AP11: QBAZ | AQ11: QTV+QVYT
B12: Led | C12: 337.4722 | G12: Led | L12: Led | Q12: 2 | V12: 2 | AA12: 2 | AK12: Led | AL12: 31 | AM12: -1.3 | AN12: =AL12*$D$26*$D$27*4187*($D$29-$D$28)*(1+$D$31/100)/3600000 -> 337.4722 | AO12: =AL12*24*$I$26*($I$27-AM12)*$I$31*(1+$I$30/100)/($I$27-$I$28) -> 2599.93125 | AP12: =+CHOOSE($AG$31,BAZ!O30,BAZ!O30,BAZ!P30,BAZ!P30) -> 3918.626188 | AQ12: =AO12+AN12 -> 2937.40345
B13: Úno | C13: 304.8136 | G13: Úno | L13: Úno | AK13: Úno | AL13: 28 | AM13: -0.1 | AN13: 304.8136 | AO13: =AL13*24*$I$26*($I$27-AM13)*$I$31*(1+$I$30/100)/($I$27-$I$28) -> 2216.025 | AP13: =+CHOOSE($AG$31,BAZ!O31,BAZ!O31,BAZ!P31,BAZ!P31) -> 3278.280261 | AQ13: =AO13+AN13 -> 2520.8386
B14: Bře | C14: 337.4722 | G14: Bře | L14: Bře | AK14: Bře | AL14: 31 | AM14: 3.7 | AN14: 337.4722 | AO14: 1989.61875 | AP14: =+CHOOSE($AG$31,BAZ!O32,BAZ!O32,BAZ!P32,BAZ!P32) -> 2863.858672 | AQ14: 2327.09095
B15: Dub | C15: 326.586 | G15: Dub | L15: Dub | AK15: Dub | AL15: 30 | AM15: 8.1 | AN15: 326.586 | AO15: 1405.6875 | AP15: =+CHOOSE($AG$31,BAZ!O33,BAZ!O33,BAZ!P33,BAZ!P33) -> 1847.969434 | AQ15: 1732.2735
B16: Kvě | C16: 337.4722 | G16: Kvě | L16: Kvě | AK16: Kvě | AL16: 31 | AM16: 13.3 | AN16: 337.4722 | AO16: 817.81875 | AP16: =+CHOOSE($AG$31,BAZ!O34,BAZ!O34,BAZ!P34,BAZ!P34) -> 939.492538 | AQ16: 1155.29095
B17: Čer | C17: 326.586 | G17: Čer | L17: Čer | AK17: Čer | AL17: 30 | AM17: 16.1 | AN17: 326.586 | AO17: 0 | AP17: =+CHOOSE($AG$31,BAZ!O35,BAZ!O35,BAZ!P35,BAZ!P35) -> 546.8884822 | AQ17: 326.586
B18: Čvc | C18: 253.10415 | G18: Čvc | L18: Čvc | AK18: Čvc | AL18: 31 | AM18: 18 | AN18: =AL18*$D$26*$D$27*4187*($D$29-$D$28)*(1+$D$31/100)*(1-$D$30/100)/3600000 -> 253.10415 | AO18: 0 | AP18: =+CHOOSE($AG$31,BAZ!O36,BAZ!O36,BAZ!P36,BAZ!P36) -> 344.2452148 | AQ18: 253.10415
B19: Srp | C19: 253.10415 | G19: Srp | L19: Srp | AK19: Srp | AL19: 31 | AM19: 17.9 | AN19: =AL19*$D$26*$D$27*4187*($D$29-$D$28)*(1+$D$31/100)*(1-$D$30/100)/3600000 -> 253.10415 | AO19: 0 | AP19: =+CHOOSE($AG$31,BAZ!O37,BAZ!O37,BAZ!P37,BAZ!P37) -> 341.1225089 | AQ19: 253.10415
B20: Zář | C20: 326.586 | G20: Zář | L20: Zář | AK20: Zář | AL20: 30 | AM20: 13.5 | AN20: =AL20*$D$26*$D$27*4187*($D$29-$D$28)*(1+$D$31/100)/3600000 -> 326.586 | AO20: 767.8125 | AP20: =+CHOOSE($AG$31,BAZ!O38,BAZ!O38,BAZ!P38,BAZ!P38) -> 1255.018617 | AQ20: 1094.3985
B21: Říj | C21: 337.4722 | G21: Říj | L21: Říj | AK21: Říj | AL21: 31 | AM21: 8.3 | AN21: =AL21*$D$26*$D$27*4187*($D$29-$D$28)*(1+$D$31/100)/3600000 -> 337.4722 | AO21: 1428.13125 | AP21: =+CHOOSE($AG$31,BAZ!O39,BAZ!O39,BAZ!P39,BAZ!P39) -> 2304.960461 | AQ21: 1765.60345
B22: Lis | C22: 326.586 | G22: Lis | L22: Lis | AK22: Lis | AL22: 30 | AM22: 3.2 | AN22: =AL22*$D$26*$D$27*4187*($D$29-$D$28)*(1+$D$31/100)/3600000 -> 326.586 | AO22: 1984.5 | AP22: =+CHOOSE($AG$31,BAZ!O40,BAZ!O40,BAZ!P40,BAZ!P40) -> 3144.228332 | AQ22: 2311.086
B23: Pro | C23: 337.4722 | G23: Pro | L23: Pro | AK23: Pro | AL23: 31 | AM23: 0.5 | AN23: =AL23*$D$26*$D$27*4187*($D$29-$D$28)*(1+$D$31/100)/3600000 -> 337.4722 | AO23: 2380.21875 | AP23: =+CHOOSE($AG$31,BAZ!O41,BAZ!O41,BAZ!P41,BAZ!P41) -> 3714.697225 | AQ23: 2717.69095
AG25: Typ bazénu
A26: Počet osob | D26: 4 | E26: os | F26: Tepelná ztráta | I26: 10 | J26: kW | K26: Plocha bazénu | N26: 12.5 | O26: m2 | Q26: Průtokový ohřev | X26: 0 | Z26: Běžný standard | AE26: 0.75 | AG26: Vnitřní zakrývaný
A27: Potřeba teplé vody | D27: 40 | E27: l/os.d | F27: Návrhová vnitřní teplota | I27: 20 | J27: °C | K27: Provozní doba | N27: 12 | O27: h/den | Q27: Zásobníkový ohřev bez cirkulace | X27: 0.15 | Z27: Nízkoenergetický standard | AE27: 0.6 | AG27: Vnitřní nezakrývaný
A28: Teplota SV | D28: 10 | E28: °C | F28: Návrhová venk. teplota | I28: -12 | J28: °C | K28: Teplota vody (den) | N28: 28 | O28: °C | Q28: Centrální zásobníkový ohřev s řízenou cirkulací | X28: 0.3 | Z28: Pasivní standard | AE28: 0.5 | AG28: Vnější zakrývaný
A29: Teplota TV | D29: 55 | E29: °C | F29: Teplota přívodní vody | I29: 35 | J29: °C | K29: Teplota vzduchu (den) | N29: 28 | O29: °C | Q29: Centrální zásobníkový ohřev s neřízenou cirkulací | X29: 1 | AG29: Vnější nezakrývaný
A30: Letní snížení potřeby | D30: 25 | E30: % | F30: Přirážka na ztráty | I30: 5 | J30: % | K30: Teplota vody (noc) | N30: 24 | O30: °C | Q30: CZT, příprava TV s meziobjektovými přípojkami, TV, CV | X30: 2
A31: Přirážka na ztráty | D31: =+CHOOSE(Q31,0,15,30,100,200) -> 30 | E31: % | F31: Korekční součinitel | I31: =+CHOOSE(Z31,0.75,0.6,0.5) -> 0.5 | K31: Teplota vzduchu (noc) | N31: 20 | O31: °C | Q31: 3 | Z31: 3 | AG31: 3
K32: Počet návštěvníků | N32: 120 | O32: os/m
A33: Specifikace solárního kolektoru a solární soustavy | Q33: plochý | V33: sklon | W33: azimut
A34: Druh: | H34: Typ: | I34: Buderus SKN 4.0 | Q34: trubkový | V34: 0° | W34: 0°
Q35: 1 | V35: 15° | W35: 15°
A36: Optická účinnost h0 | E36: 0.78 | F36: - | Q36: Bazén vnitřní, ohřev bazénové vody | V36: 30° | W36: 30° | AH36: splněno
A37: Koeficient ztráty a1 | E37: 3.25 | F37: W/m2K | H37: Střední denní teplota v solárních kolektorech | N37: =+CHOOSE($Q$40,35,30,25+11000*E41/(1000*F57),35+8000*E41/(1000*F57)+0.2*(I29-35)) -> 38.58836031 | O37: °C | Q37: Bazén venkovní, ohřev bazénové vody | V37: 45° | W37: 45° | AD37: =+E40*N39/F57 -> 1.209022387 | AH37: =IF(Q40<2.5,1,IF(AD37>AH38,IF(AD37<AH39,1,0),0)) -> 1
A38: Koeficient ztráty a2 | E38: 0.016 | F38: W/m2K2 | H38: Srážka z tepelných zisků vlivem tepelných ztrát | N38: =+CHOOSE($Q$40,1,1,100*(0.26/$E$41+100*E41/(1000*F57)),100*(0.26/$E$41+100*E41/(1000*F57)+0.002*($D$28*SUM(C12:D23)+$I$29*SUM(H12:I23))/(1000*F57))) -> 17.88496972 | O38: % | Q38: Příprava teplé vody | V38: 60° | AD38: dolni | AH38: 0.1
A39: Vztažná plocha kolektoru | E39: 2.35 | F39: m2 | H39: Plocha apertury kolektoru | N39: 2.3 | O39: m2 | Q39: Příprava teplé vody a vytápění | V39: 75° | AD39: horni | AH39: 2.6
A40: Počet kolektorů | E40: 2 | F40: ks | H40: Sklon kolektorů | Q40: 3 | V40: 90°
A41: Plocha kolektorového pole | E41: =E40*E39 -> 4.7 | F41: m2 | H41: Azimut kolektorů | V41: 7 | W41: 1
A42: Výsledky výpočtu | I42: =+IF(AH37=1,"Souhrnné výsledky","Výsledky jsou mimo rozsah platnosti") -> Souhrnné výsledky
A43: Měsíc | B43: tes | C43: Gm | D43: HT | E43: hk | F43: Qp | G43: Qk,u | H43: Qssu | I43: Energetický zisk soustavy | M43: =H57 -> 1.483347016 | N43: MWh/rok
B44: °C | C44: W/m2 | D44: kWh/m2 | E44: - | F44: MWh | G44: MWh | H44: MWh | I44: Měrný solární zisk | M44: =1000*H57/E40/N39 -> 322.4667427 | N44: kWh/m2.rok
A45: Led | B45: =BAZ!R2 -> 1.8 | C45: =G!C45 -> 443 | D45: =H!C44 -> 34.2 | E45: =IF($E$36-$E$37*($N$37-B45)/C45-$E$38*POWER($N$37-B45,2)/C45<0,0,$E$36-$E$37*($N$37-B45)/C45-$E$38*POWER($N$37-B45,2)/C45) -> 0.4612272996 | F45: =+CHOOSE($Q$40,M12,M12,C12,C12+H12)/1000 -> 0.3374722 | G45: =0.9*E45*D45*$E$41*(1-$N$38/100)/1000 -> 0.05479035769 | H45: =MIN(F45,G45) -> 0.05479035769 | I45: Solární pokrytí | M45: =100*H57/F57 -> 38.98695111 | N45: %
A46: Úno | B46: =BAZ!R3 -> 2.7 | C46: =G!D45 -> 473 | D46: =H!D44 -> 51.1 | E46: =IF($E$36-$E$37*($N$37-B46)/C46-$E$38*POWER($N$37-B46,2)/C46<0,0,$E$36-$E$37*($N$37-B46)/C46-$E$38*POWER($N$37-B46,2)/C46) -> 0.4898419419 | F46: =+CHOOSE($Q$40,M13,M13,C13,C13+H13)/1000 -> 0.3048136 | G46: =0.9*E46*D46*$E$41*(1-$N$38/100)/1000 -> 0.0869440553 | H46: =MIN(F46,G46) -> 0.0869440553
A47: Bře | B47: =BAZ!R4 -> 6.3 | C47: =G!E45 -> 438 | D47: =H!E44 -> 74.4 | E47: 0.5023338302 | F47: 0.3374722 | G47: 0.1298160491 | H47: 0.1298160491
A48: Dub | B48: =BAZ!R5 -> 10.7 | C48: =G!F45 -> 355 | D48: =H!F44 -> 85.7 | E48: 0.4896300246 | F48: 0.326586 | G48: 0.1457511157 | H48: 0.1457511157
A49: Kvě | B49: =BAZ!R6 -> 16 | C49: =G!G45 -> 299 | D49: =H!G44 -> 87 | E49: 0.5071708517 | F49: 0.3374722 | G49: 0.153262732 | H49: 0.153262732
A50: Čer | B50: =BAZ!R7 -> 18.6 | C50: =G!H45 -> 279 | D50: =H!H44 -> 75.6 | E50: 0.5242483019 | F50: 0.326586 | G50: 0.1376644654 | H50: 0.1376644654
A51: Čvc | B51: =BAZ!R8 -> 20.5 | C51: =G!I45 -> 285 | D51: =H!I44 -> 78.1 | E51: 0.5553607317 | F51: 0.25310415 | G51: 0.1506569695 | H51: 0.1506569695
A52: Srp | B52: =BAZ!R9 -> 21.1 | C52: =G!J45 -> 325 | D52: =H!J44 -> 96 | E52: 0.5900595232 | F52: 0.25310415 | G52: 0.19675695 | H52: 0.19675695
A53: Zář | B53: =BAZ!R10 -> 17.1 | C53: =G!K45 -> 393 | D53: =H!K44 -> 77.8 | E53: 0.5834983077 | F53: 0.326586 | G53: 0.1576820373 | H53: 0.1576820373
A54: Říj | B54: =BAZ!R11 -> 11.7 | C54: =G!L45 -> 444 | D54: =H!L44 -> 74.4 | E54: 0.5571285727 | F54: 0.3374722 | G54: 0.1439764272 | H54: 0.1439764272
A55: Lis | B55: =BAZ!R12 -> 6.4 | C55: =G!M45 -> 438 | D55: =H!M44 -> 45.4 | E55: 0.5033113707 | F55: 0.326586 | G55: 0.07936986097 | H55: 0.07936986097
A56: Pro | B56: =BAZ!R13 -> 3.6 | C56: =G!N45 -> 421 | D56: =H!N44 -> 29 | E56: 0.4633749722 | F56: 0.3374722 | G56: 0.04667599617 | H56: 0.04667599617
A57: Celkem | D57: =SUM(D45:D56) -> 808.7 | F57: =SUM(F45:F56) -> 3.8047269 | H57: =SUM(H45:H56) -> 1.483347016
A58: Výpočetní nástroj v souladu s TNI 73 0302:2014 | H58: Autoři: T. Matuška, B. Šourek, ČVUT, 2015

Sheet H (hidden)
B1: Úhel sklonu plochy | C1: Teoreticky možná sluneční energie celkového záření HT,měs [kWh/(m2.měs)] dopadající za den pro charakteristickou oblast město
B2: b | C2: Led | D2: Úno | E2: Bře | F2: Dub | G2: Kvě | H2: Čvn | I2: Čvc | J2: Srp | K2: Zář | L2: Říj | M2: Lis | N2: Pro
B3: Azimutový úhel osluněné plochy g = ± 0° (orientace na jih)
A4: 0 | B4: 0 | C4: 20.8 | D4: 37 | E4: 72.2 | F4: 113.8 | G4: 148.8 | H4: 146.2 | I4: 144.3 | J4: 136.2 | K4: 87.1 | L4: 56.5 | M4: 25.2 | N4: 14.9
B5: 15 | C5: 27.5 | D5: 46.4 | E5: 89 | F5: 124.6 | G5: 155.5 | H5: 149.8 | I5: 148.8 | J5: 147.3 | K5: 97.9 | L5: 69.9 | M5: 33.8 | N5: 20.8
B6: 30 | C6: 32 | D6: 53.1 | E6: 90.8 | F6: 128.9 | G6: 154.8 | H6: 146.2 | I6: 145.8 | J6: 151.8 | K6: 104.4 | L6: 79.6 | M6: 41 | N6: 25.3
B7: 45 | C7: 35.7 | D7: 57.1 | E7: 93 | F7: 127.4 | G7: 147.3 | H7: 136.1 | I7: 136.9 | J7: 148.1 | K7: 105.1 | L7: 85.6 | M7: 46.1 | N7: 29
B8: 60 | C8: 37.2 | D8: 57.8 | E8: 91.5 | F8: 118.8 | G8: 132.4 | H8: 120.2 | I8: 121.3 | J8: 136.9 | K8: 100.8 | L8: 86.3 | M8: 48.2 | N8: 30.5
B9: 75 | C9: 36.5 | D9: 55.8 | E9: 84.8 | F9: 105.1 | G9: 111.6 | H9: 99.4 | I9: 101.2 | J9: 119 | K9: 91.4 | L9: 82.6 | M9: 48.2 | N9: 30.5
B10: 90 | C10: 34.2 | D10: 51.1 | E10: 74.4 | F10: 85.7 | G10: 87 | H10: 75.6 | I10: 78.1 | J10: 96 | K10: 77.8 | L10: 74.4 | M10: 45.4 | N10: 29
B11: Azimutový úhel osluněné plochy g = ± 15°
A12: 15 | B12: 15 | C12: 26.8 | D12: 45.7 | E12: 82.6 | F12: 123.8 | G12: 155.5 | H12: 149.8 | I12: 148.8 | J12: 147.3 | K12: 97.2 | L12: 69.2 | M12: 33.8 | N12: 20.8
B13: 30 | C13: 32 | D13: 52.4 | E13: 90 | F13: 128.2 | G13: 154.8 | H13: 146.9 | I13: 145.8 | J13: 151 | K13: 103 | L13: 78.9 | M13: 40.3 | N13: 25.3
B14: 45 | C14: 35 | D14: 55.8 | E14: 92.3 | F14: 126 | G14: 146.6 | H14: 136.8 | I14: 136.9 | J14: 147.3 | K14: 103.7 | L14: 84.1 | M14: 44.6 | N14: 28.3
B15: 60 | C15: 36.5 | D15: 56.4 | E15: 90 | F15: 118.1 | G15: 132.4 | H15: 121.7 | I15: 122 | J15: 136.2 | K15: 98.6 | L15: 84.1 | M15: 46.8 | N15: 30.5
B16: 75 | C16: 35.7 | D16: 54.4 | E16: 83.3 | F16: 104.4 | G16: 112.3 | H16: 101.5 | I16: 101.9 | J16: 118.3 | K16: 89.3 | L16: 80.4 | M16: 46.8 | N16: 30.5
B17: 90 | C17: 33.5 | D17: 49.7 | E17: 72.9 | F17: 86.4 | G17: 88.5 | H17: 77.8 | I17: 79.6 | J17: 96.7 | K17: 75.6 | L17: 72.2 | M17: 43.2 | N17: 29
B18: Azimutový úhel osluněné plochy g = ± 30°
A19: 30 | B19: 15 | C19: 26 | D19: 45 | E19: 81.8 | F19: 123.1 | G19: 154.8 | H19: 149.8 | I19: 148.1 | J19: 145.8 | K19: 95.8 | L19: 67.7 | M19: 32.4 | N19: 20.1
B20: 30 | C20: 30.5 | D20: 50.4 | E20: 87.8 | F20: 126.7 | G20: 153.3 | H20: 146.9 | I20: 145.1 | J20: 148.8 | K20: 100.1 | L20: 75.9 | M20: 38.2 | N20: 23.8
B21: 45 | C21: 32.7 | D21: 53.1 | E21: 89.3 | F21: 124.6 | G21: 145.8 | H21: 137.5 | I21: 136.9 | J21: 144.3 | K21: 99.4 | L21: 79.6 | M21: 42.5 | N21: 26.8
B22: 60 | C22: 34.2 | D22: 53.1 | E22: 86.3 | F22: 116.6 | G22: 131.7 | H22: 123.1 | I22: 122.8 | J22: 133.9 | K22: 95 | L22: 79.6 | M22: 43.9 | N22: 28.3
B23: 75 | C23: 33.5 | D23: 51.1 | E23: 79.6 | F23: 103.7 | G23: 113.1 | H23: 104.4 | I23: 104.2 | J23: 116.8 | K23: 85.7 | L23: 75.1 | M23: 42.5 | N23: 28.3
B24: 90 | C24: 30.5 | D24: 45.7 | E24: 69.2 | F24: 87.1 | G24: 90.8 | H24: 82.8 | I24: 82.6 | J24: 96 | K24: 72.7 | L24: 67 | M24: 39.6 | N24: 26.8
B25: Azimutový úhel osluněné plochy g = ± 45°
A26: 45 | B26: 15 | C26: 25.3 | D26: 43 | E26: 79.6 | F26: 121 | G26: 153.3 | H26: 149 | I26: 146.6 | J26: 143.6 | K26: 93.6 | L26: 65.5 | M26: 31 | N26: 19.3
B27: 30 | C27: 28.3 | D27: 47 | E27: 84.1 | F27: 123.1 | G27: 151 | H27: 146.2 | I27: 143.6 | J27: 145.1 | K27: 96.5 | L27: 71.4 | M27: 35.3 | N27: 22.3
B28: 45 | C28: 30.5 | D28: 49.1 | E28: 84.1 | F28: 121 | G28: 143.6 | H28: 138.2 | I28: 135.4 | J28: 139.9 | K28: 95 | L28: 73.7 | M28: 38.2 | N28: 24.6
B29: 60 | C29: 30.5 | D29: 49.1 | E29: 81.1 | F29: 113 | G29: 130.2 | H29: 124.6 | I29: 122 | J29: 129.5 | K29: 89.3 | L29: 72.9 | M29: 38.9 | N29: 25.3
B30: 75 | C30: 29 | D30: 45.7 | E30: 74.4 | F30: 101.5 | G30: 113.1 | H30: 107.3 | I30: 105.6 | J30: 113.8 | K30: 80.6 | L30: 68.4 | M30: 37.4 | N30: 25.3
B31: 90 | C31: 26.8 | D31: 41 | E31: 64.7 | F31: 86.4 | G31: 92.3 | H31: 87.8 | I31: 85.6 | J31: 94.5 | K31: 69.1 | L31: 60.3 | M31: 33.8 | N31: 23.1
B32: zvolený azimut | D32: =CHOOSE(Bilance!$W$41,0,15,30,45) -> 0
B33: b | C33: Led | D33: Úno | E33: Bře | F33: Dub | G33: Kvě | H33: Čvn | I33: Čvc | J33: Srp | K33: Zář | L33: Říj | M33: Lis | N33: Pro
B34: 0 | C34: =C4 -> 20.8 | D34: =D4 -> 37 | E34: 72.2 | F34: 113.8 | G34: 148.8 | H34: 146.2 | I34: 144.3 | J34: 136.2 | K34: 87.1 | L34: 56.5 | M34: 25.2 | N34: 14.9
B35: 15 | C35: =+CHOOSE(Bilance!$W$41,H!C5,H!C12,H!C19,H!C26) -> 27.5 | D35: =+CHOOSE(Bilance!$W$41,H!D5,H!D12,H!D19,H!D26) -> 46.4 | E35: =+CHOOSE(Bilance!$W$41,H!E5,H!E12,H!E19,H!E26) -> 89 | F35: =+CHOOSE(Bilance!$W$41,H!F5,H!F12,H!F19,H!F26) -> 124.6 | G35: =+CHOOSE(Bilance!$W$41,H!G5,H!G12,H!G19,H!G26) -> 155.5 | H35: =+CHOOSE(Bilance!$W$41,H!H5,H!H12,H!H19,H!H26) -> 149.8 | I35: =+CHOOSE(Bilance!$W$41,H!I5,H!I12,H!I19,H!I26) -> 148.8 | J35: =+CHOOSE(Bilance!$W$41,H!J5,H!J12,H!J19,H!J26) -> 147.3 | K35: =+CHOOSE(Bilance!$W$41,H!K5,H!K12,H!K19,H!K26) -> 97.9 | L35: =+CHOOSE(Bilance!$W$41,H!L5,H!L12,H!L19,H!L26) -> 69.9 | M35: =+CHOOSE(Bilance!$W$41,H!M5,H!M12,H!M19,H!M26) -> 33.8 | N35: =+CHOOSE(Bilance!$W$41,H!N5,H!N12,H!N19,H!N26) -> 20.8
B36: 30 | C36: =+CHOOSE(Bilance!$W$41,H!C6,H!C13,H!C20,H!C27) -> 32 | D36: =+CHOOSE(Bilance!$W$41,H!D6,H!D13,H!D20,H!D27) -> 53.1 | E36: =+CHOOSE(Bilance!$W$41,H!E6,H!E13,H!E20,H!E27) -> 90.8 | F36: =+CHOOSE(Bilance!$W$41,H!F6,H!F13,H!F20,H!F27) -> 128.9 | G36: =+CHOOSE(Bilance!$W$41,H!G6,H!G13,H!G20,H!G27) -> 154.8 | H36: =+CHOOSE(Bilance!$W$41,H!H6,H!H13,H!H20,H!H27) -> 146.2 | I36: =+CHOOSE(Bilance!$W$41,H!I6,H!I13,H!I20,H!I27) -> 145.8 | J36: =+CHOOSE(Bilance!$W$41,H!J6,H!J13,H!J20,H!J27) -> 151.8 | K36: =+CHOOSE(Bilance!$W$41,H!K6,H!K13,H!K20,H!K27) -> 104.4 | L36: =+CHOOSE(Bilance!$W$41,H!L6,H!L13,H!L20,H!L27) -> 79.6 | M36: =+CHOOSE(Bilance!$W$41,H!M6,H!M13,H!M20,H!M27) -> 41 | N36: =+CHOOSE(Bilance!$W$41,H!N6,H!N13,H!N20,H!N27) -> 25.3
B37: 45 | C37: =+CHOOSE(Bilance!$W$41,H!C7,H!C14,H!C21,H!C28) -> 35.7 | D37: =+CHOOSE(Bilance!$W$41,H!D7,H!D14,H!D21,H!D28) -> 57.1 | E37: =+CHOOSE(Bilance!$W$41,H!E7,H!E14,H!E21,H!E28) -> 93 | F37: =+CHOOSE(Bilance!$W$41,H!F7,H!F14,H!F21,H!F28) -> 127.4 | G37: =+CHOOSE(Bilance!$W$41,H!G7,H!G14,H!G21,H!G28) -> 147.3 | H37: =+CHOOSE(Bilance!$W$41,H!H7,H!H14,H!H21,H!H28) -> 136.1 | I37: =+CHOOSE(Bilance!$W$41,H!I7,H!I14,H!I21,H!I28) -> 136.9 | J37: =+CHOOSE(Bilance!$W$41,H!J7,H!J14,H!J21,H!J28) -> 148.1 | K37: =+CHOOSE(Bilance!$W$41,H!K7,H!K14,H!K21,H!K28) -> 105.1 | L37: =+CHOOSE(Bilance!$W$41,H!L7,H!L14,H!L21,H!L28) -> 85.6 | M37: =+CHOOSE(Bilance!$W$41,H!M7,H!M14,H!M21,H!M28) -> 46.1 | N37: =+CHOOSE(Bilance!$W$41,H!N7,H!N14,H!N21,H!N28) -> 29
B38: 60 | C38: =+CHOOSE(Bilance!$W$41,H!C8,H!C15,H!C22,H!C29) -> 37.2 | D38: =+CHOOSE(Bilance!$W$41,H!D8,H!D15,H!D22,H!D29) -> 57.8 | E38: =+CHOOSE(Bilance!$W$41,H!E8,H!E15,H!E22,H!E29) -> 91.5 | F38: =+CHOOSE(Bilance!$W$41,H!F8,H!F15,H!F22,H!F29) -> 118.8 | G38: =+CHOOSE(Bilance!$W$41,H!G8,H!G15,H!G22,H!G29) -> 132.4 | H38: =+CHOOSE(Bilance!$W$41,H!H8,H!H15,H!H22,H!H29) -> 120.2 | I38: =+CHOOSE(Bilance!$W$41,H!I8,H!I15,H!I22,H!I29) -> 121.3 | J38: =+CHOOSE(Bilance!$W$41,H!J8,H!J15,H!J22,H!J29) -> 136.9 | K38: =+CHOOSE(Bilance!$W$41,H!K8,H!K15,H!K22,H!K29) -> 100.8 | L38: =+CHOOSE(Bilance!$W$41,H!L8,H!L15,H!L22,H!L29) -> 86.3 | M38: =+CHOOSE(Bilance!$W$41,H!M8,H!M15,H!M22,H!M29) -> 48.2 | N38: =+CHOOSE(Bilance!$W$41,H!N8,H!N15,H!N22,H!N29) -> 30.5
B39: 75 | C39: =+CHOOSE(Bilance!$W$41,H!C9,H!C16,H!C23,H!C30) -> 36.5 | D39: =+CHOOSE(Bilance!$W$41,H!D9,H!D16,H!D23,H!D30) -> 55.8 | E39: =+CHOOSE(Bilance!$W$41,H!E9,H!E16,H!E23,H!E30) -> 84.8 | F39: =+CHOOSE(Bilance!$W$41,H!F9,H!F16,H!F23,H!F30) -> 105.1 | G39: =+CHOOSE(Bilance!$W$41,H!G9,H!G16,H!G23,H!G30) -> 111.6 | H39: =+CHOOSE(Bilance!$W$41,H!H9,H!H16,H!H23,H!H30) -> 99.4 | I39: =+CHOOSE(Bilance!$W$41,H!I9,H!I16,H!I23,H!I30) -> 101.2 | J39: =+CHOOSE(Bilance!$W$41,H!J9,H!J16,H!J23,H!J30) -> 119 | K39: =+CHOOSE(Bilance!$W$41,H!K9,H!K16,H!K23,H!K30) -> 91.4 | L39: =+CHOOSE(Bilance!$W$41,H!L9,H!L16,H!L23,H!L30) -> 82.6 | M39: =+CHOOSE(Bilance!$W$41,H!M9,H!M16,H!M23,H!M30) -> 48.2 | N39: =+CHOOSE(Bilance!$W$41,H!N9,H!N16,H!N23,H!N30) -> 30.5
B40: 90 | C40: =+CHOOSE(Bilance!$W$41,H!C10,H!C17,H!C24,H!C31) -> 34.2 | D40: =+CHOOSE(Bilance!$W$41,H!D10,H!D17,H!D24,H!D31) -> 51.1 | E40: =+CHOOSE(Bilance!$W$41,H!E10,H!E17,H!E24,H!E31) -> 74.4 | F40: =+CHOOSE(Bilance!$W$41,H!F10,H!F17,H!F24,H!F31) -> 85.7 | G40: =+CHOOSE(Bilance!$W$41,H!G10,H!G17,H!G24,H!G31) -> 87 | H40: =+CHOOSE(Bilance!$W$41,H!H10,H!H17,H!H24,H!H31) -> 75.6 | I40: =+CHOOSE(Bilance!$W$41,H!I10,H!I17,H!I24,H!I31) -> 78.1 | J40: =+CHOOSE(Bilance!$W$41,H!J10,H!J17,H!J24,H!J31) -> 96 | K40: =+CHOOSE(Bilance!$W$41,H!K10,H!K17,H!K24,H!K31) -> 77.8 | L40: =+CHOOSE(Bilance!$W$41,H!L10,H!L17,H!L24,H!L31) -> 74.4 | M40: =+CHOOSE(Bilance!$W$41,H!M10,H!M17,H!M24,H!M31) -> 45.4 | N40: =+CHOOSE(Bilance!$W$41,H!N10,H!N17,H!N24,H!N31) -> 29
B42: zvolený sklon | D42: =CHOOSE(Bilance!$V$41,0,15,30,45,60,75,90) -> 90
C43: Led | D43: Úno | E43: Bře | F43: Dub | G43: Kvě | H43: Čvn | I43: Čvc | J43: Srp | K43: Zář | L43: Říj | M43: Lis | N43: Pro
C44: =VLOOKUP($D$42,$B$34:$N$40,2,FALSE) -> 34.2 | D44: =VLOOKUP($D$42,$B$34:$N$40,3,FALSE) -> 51.1 | E44: =VLOOKUP($D$42,$B$34:$N$40,4,FALSE) -> 74.4 | F44: =VLOOKUP($D$42,$B$34:$N$40,5,FALSE) -> 85.7 | G44: =VLOOKUP($D$42,$B$34:$N$40,6,FALSE) -> 87 | H44: =VLOOKUP($D$42,$B$34:$N$40,7,FALSE) -> 75.6 | I44: =VLOOKUP($D$42,$B$34:$N$40,8,FALSE) -> 78.1 | J44: =VLOOKUP($D$42,$B$34:$N$40,9,FALSE) -> 96 | K44: =VLOOKUP($D$42,$B$34:$N$40,10,FALSE) -> 77.8 | L44: =VLOOKUP($D$42,$B$34:$N$40,11,FALSE) -> 74.4 | M44: =VLOOKUP($D$42,$B$34:$N$40,12,FALSE) -> 45.4 | N44: =VLOOKUP($D$42,$B$34:$N$40,13,FALSE) -> 29

Sheet GRAF (hidden)
B1: Měsíc | C1: Potřeba | D1: Zisk
B2: 1 | C2: =Bilance!F45 -> 0.3374722 | D2: =Bilance!G45 -> 0.05479035769
B3: 2 | C3: =Bilance!F46 -> 0.3048136 | D3: =Bilance!G46 -> 0.0869440553
B4: 3 | C4: =Bilance!F47 -> 0.3374722 | D4: =Bilance!G47 -> 0.1298160491
B5: 4 | C5: =Bilance!F48 -> 0.326586 | D5: =Bilance!G48 -> 0.1457511157
B6: 5 | C6: =Bilance!F49 -> 0.3374722 | D6: =Bilance!G49 -> 0.153262732
B7: 6 | C7: =Bilance!F50 -> 0.326586 | D7: =Bilance!G50 -> 0.1376644654
B8: 7 | C8: =Bilance!F51 -> 0.25310415 | D8: =Bilance!G51 -> 0.1506569695
B9: 8 | C9: =Bilance!F52 -> 0.25310415 | D9: =Bilance!G52 -> 0.19675695
B10: 9 | C10: =Bilance!F53 -> 0.326586 | D10: =Bilance!G53 -> 0.1576820373
B11: 10 | C11: =Bilance!F54 -> 0.3374722 | D11: =Bilance!G54 -> 0.1439764272
B12: 11 | C12: =Bilance!F55 -> 0.326586 | D12: =Bilance!G55 -> 0.07936986097
B13: 12 | C13: =Bilance!F56 -> 0.3374722 | D13: =Bilance!G56 -> 0.04667599617

Sheet G (hidden)
B1: Úhel sklonu plochy | C1: Střední hodnota slunečního ozáření GT,m [W/m2]
B2: b | C2: pro charakteristickou oblast město
C3: I | D3: II | E3: III | F3: IV | G3: V | H3: VI | I3: VII | J3: VIII | K3: IX | L3: X | M3: XI | N3: XII
A4: 0 | B4: Azimutový úhel osluněné plochy g = ± 0° (orientace na jih)
B5: 0 | C5: 175 | D5: 253 | E5: 365 | F5: 446 | G5: 498 | H5: 514 | I5: 501 | J5: 462 | K5: 388 | L5: 285 | M5: 195 | N5: 150
B6: 15 | C6: 273 | D6: 353 | E6: 448 | F6: 501 | G6: 535 | H6: 545 | I6: 534 | J6: 508 | K6: 457 | L6: 375 | M6: 290 | N6: 245
B7: 30 | C7: 356 | D7: 434 | E7: 506 | F7: 529 | G7: 543 | H7: 546 | I7: 538 | J7: 526 | K7: 501 | L7: 444 | M7: 369 | N7: 325
B8: 45 | C8: 418 | D8: 489 | E8: 535 | F8: 527 | G8: 521 | H8: 517 | I8: 512 | J8: 515 | K8: 516 | L8: 488 | M8: 427 | N8: 387
B9: 60 | C9: 454 | D9: 514 | E9: 533 | F9: 496 | G9: 470 | H9: 460 | I9: 459 | J9: 476 | K9: 503 | L9: 502 | M9: 458 | N9: 424
B10: 75 | C10: 463 | D10: 509 | E10: 500 | F10: 437 | G10: 394 | H10: 379 | I10: 381 | J10: 411 | K10: 461 | L10: 488 | M10: 462 | N10: 436
B11: 90 | C11: 443 | D11: 473 | E11: 438 | F11: 355 | G11: 299 | H11: 279 | I11: 285 | J11: 325 | K11: 393 | L11: 444 | M11: 438 | N11: 421
A12: 15 | B12: Azimutový úhel osluněné plochy g = ± 15°
B13: 15 | C13: 270 | D13: 350 | E13: 445 | F13: 499 | G13: 534 | H13: 543 | I13: 533 | J13: 506 | K13: 454 | L13: 372 | M13: 287 | N13: 241
B14: 30 | C14: 349 | D14: 427 | E14: 500 | F14: 525 | G14: 540 | H14: 543 | I14: 535 | J14: 522 | K14: 496 | L14: 438 | M14: 363 | N14: 319
B15: 45 | C15: 408 | D15: 479 | E15: 526 | F15: 521 | G15: 516 | H15: 512 | I15: 508 | J15: 509 | K15: 509 | L15: 479 | M15: 417 | N15: 377
B16: 60 | C16: 442 | D16: 502 | E16: 522 | F16: 488 | G16: 464 | H16: 455 | I16: 453 | J16: 469 | K16: 494 | L16: 491 | M16: 447 | N16: 413
B17: 75 | C17: 449 | D17: 495 | E17: 488 | F17: 428 | G17: 388 | H17: 373 | I17: 375 | J17: 403 | K17: 451 | L17: 475 | M17: 449 | N17: 423
B18: 90 | C18: 429 | D18: 459 | E18: 426 | F18: 346 | G18: 292 | H18: 273 | I18: 279 | J18: 317 | K18: 383 | L18: 431 | M18: 425 | N18: 408
A19: 30 | B19: Azimutový úhel osluněné plochy g = ± 30°
B20: 15 | C20: 259 | D20: 339 | E20: 435 | F20: 492 | G20: 529 | H20: 539 | I20: 528 | J20: 500 | K20: 446 | L20: 362 | M20: 277 | N20: 232
B21: 30 | C21: 329 | D21: 406 | E21: 482 | F21: 512 | G21: 530 | H21: 534 | I21: 526 | J21: 511 | K21: 480 | L21: 419 | M21: 343 | N21: 300
B22: 45 | C22: 380 | D22: 449 | E22: 501 | F22: 502 | G22: 502 | H22: 500 | I22: 495 | J22: 494 | K22: 487 | L22: 452 | M22: 390 | N22: 351
B23: 60 | C23: 408 | D23: 466 | E23: 491 | F23: 465 | G23: 447 | H23: 440 | I23: 438 | J23: 449 | K23: 467 | L23: 459 | M23: 413 | N23: 380
B24: 75 | C24: 411 | D24: 455 | E24: 453 | F24: 403 | G24: 369 | H24: 356 | I24: 358 | J24: 382 | K24: 421 | L24: 439 | M24: 412 | N24: 387
B25: 90 | C25: 390 | D25: 418 | E25: 390 | F25: 320 | G25: 273 | H25: 256 | I25: 261 | J25: 294 | K25: 352 | L25: 394 | M25: 386 | N25: 370
A26: 45 | B26: Azimutový úhel osluněné plochy g = ± 45°
B27: 15 | C27: 243 | D27: 322 | E27: 421 | F27: 482 | G27: 521 | H27: 532 | I27: 521 | J27: 491 | K27: 434 | L27: 347 | M27: 261 | N27: 216
B28: 30 | C28: 298 | D28: 373 | E28: 453 | F28: 491 | G28: 514 | H28: 520 | I28: 512 | J28: 493 | K28: 456 | L28: 389 | M28: 313 | N28: 270
B29: 45 | C29: 336 | D29: 403 | E29: 460 | F29: 473 | G29: 480 | H29: 481 | I29: 475 | J29: 468 | K29: 453 | L29: 410 | M29: 346 | N29: 308
B30: 60 | C30: 353 | D30: 409 | E30: 442 | F30: 430 | G30: 420 | H30: 416 | I30: 413 | J30: 419 | K30: 425 | L30: 407 | M30: 360 | N30: 328
B31: 75 | C31: 350 | D31: 392 | E31: 398 | F31: 363 | G31: 339 | H31: 330 | I31: 331 | J31: 347 | K31: 374 | L31: 381 | M31: 353 | N31: 329
B32: 90 | C32: 327 | D32: 352 | E32: 333 | F32: 279 | G32: 242 | H32: 229 | I32: 233 | J32: 259 | K32: 303 | L32: 334 | M32: 325 | N32: 310
B33: zvolený azimut | D33: =CHOOSE(Bilance!$W$41,0,15,30,45) -> 0
B34: b | C34: Led | D34: Úno | E34: Bře | F34: Dub | G34: Kvě | H34: Čvn | I34: Čvc | J34: Srp | K34: Zář | L34: Říj | M34: Lis | N34: Pro
B35: 0 | C35: =C5 -> 175 | D35: =D5 -> 253 | E35: 365 | F35: 446 | G35: 498 | H35: 514 | I35: 501 | J35: 462 | K35: 388 | L35: 285 | M35: 195 | N35: 150
B36: 15 | C36: =+CHOOSE(Bilance!$W$41,G!C6,G!C13,G!C20,G!C27) -> 273 | D36: =+CHOOSE(Bilance!$W$41,G!D6,G!D13,G!D20,G!D27) -> 353 | E36: =+CHOOSE(Bilance!$W$41,G!E6,G!E13,G!E20,G!E27) -> 448 | F36: =+CHOOSE(Bilance!$W$41,G!F6,G!F13,G!F20,G!F27) -> 501 | G36: =+CHOOSE(Bilance!$W$41,G!G6,G!G13,G!G20,G!G27) -> 535 | H36: =+CHOOSE(Bilance!$W$41,G!H6,G!H13,G!H20,G!H27) -> 545 | I36: =+CHOOSE(Bilance!$W$41,G!I6,G!I13,G!I20,G!I27) -> 534 | J36: =+CHOOSE(Bilance!$W$41,G!J6,G!J13,G!J20,G!J27) -> 508 | K36: =+CHOOSE(Bilance!$W$41,G!K6,G!K13,G!K20,G!K27) -> 457 | L36: =+CHOOSE(Bilance!$W$41,G!L6,G!L13,G!L20,G!L27) -> 375 | M36: =+CHOOSE(Bilance!$W$41,G!M6,G!M13,G!M20,G!M27) -> 290 | N36: =+CHOOSE(Bilance!$W$41,G!N6,G!N13,G!N20,G!N27) -> 245
B37: 30 | C37: =+CHOOSE(Bilance!$W$41,G!C7,G!C14,G!C21,G!C28) -> 356 | D37: =+CHOOSE(Bilance!$W$41,G!D7,G!D14,G!D21,G!D28) -> 434 | E37: =+CHOOSE(Bilance!$W$41,G!E7,G!E14,G!E21,G!E28) -> 506 | F37: =+CHOOSE(Bilance!$W$41,G!F7,G!F14,G!F21,G!F28) -> 529 | G37: =+CHOOSE(Bilance!$W$41,G!G7,G!G14,G!G21,G!G28) -> 543 | H37: =+CHOOSE(Bilance!$W$41,G!H7,G!H14,G!H21,G!H28) -> 546 | I37: =+CHOOSE(Bilance!$W$41,G!I7,G!I14,G!I21,G!I28) -> 538 | J37: =+CHOOSE(Bilance!$W$41,G!J7,G!J14,G!J21,G!J28) -> 526 | K37: =+CHOOSE(Bilance!$W$41,G!K7,G!K14,G!K21,G!K28) -> 501 | L37: =+CHOOSE(Bilance!$W$41,G!L7,G!L14,G!L21,G!L28) -> 444 | M37: =+CHOOSE(Bilance!$W$41,G!M7,G!M14,G!M21,G!M28) -> 369 | N37: =+CHOOSE(Bilance!$W$41,G!N7,G!N14,G!N21,G!N28) -> 325
B38: 45 | C38: =+CHOOSE(Bilance!$W$41,G!C8,G!C15,G!C22,G!C29) -> 418 | D38: =+CHOOSE(Bilance!$W$41,G!D8,G!D15,G!D22,G!D29) -> 489 | E38: =+CHOOSE(Bilance!$W$41,G!E8,G!E15,G!E22,G!E29) -> 535 | F38: =+CHOOSE(Bilance!$W$41,G!F8,G!F15,G!F22,G!F29) -> 527 | G38: =+CHOOSE(Bilance!$W$41,G!G8,G!G15,G!G22,G!G29) -> 521 | H38: =+CHOOSE(Bilance!$W$41,G!H8,G!H15,G!H22,G!H29) -> 517 | I38: =+CHOOSE(Bilance!$W$41,G!I8,G!I15,G!I22,G!I29) -> 512 | J38: =+CHOOSE(Bilance!$W$41,G!J8,G!J15,G!J22,G!J29) -> 515 | K38: =+CHOOSE(Bilance!$W$41,G!K8,G!K15,G!K22,G!K29) -> 516 | L38: =+CHOOSE(Bilance!$W$41,G!L8,G!L15,G!L22,G!L29) -> 488 | M38: =+CHOOSE(Bilance!$W$41,G!M8,G!M15,G!M22,G!M29) -> 427 | N38: =+CHOOSE(Bilance!$W$41,G!N8,G!N15,G!N22,G!N29) -> 387
B39: 60 | C39: =+CHOOSE(Bilance!$W$41,G!C9,G!C16,G!C23,G!C30) -> 454 | D39: =+CHOOSE(Bilance!$W$41,G!D9,G!D16,G!D23,G!D30) -> 514 | E39: =+CHOOSE(Bilance!$W$41,G!E9,G!E16,G!E23,G!E30) -> 533 | F39: =+CHOOSE(Bilance!$W$41,G!F9,G!F16,G!F23,G!F30) -> 496 | G39: =+CHOOSE(Bilance!$W$41,G!G9,G!G16,G!G23,G!G30) -> 470 | H39: =+CHOOSE(Bilance!$W$41,G!H9,G!H16,G!H23,G!H30) -> 460 | I39: =+CHOOSE(Bilance!$W$41,G!I9,G!I16,G!I23,G!I30) -> 459 | J39: =+CHOOSE(Bilance!$W$41,G!J9,G!J16,G!J23,G!J30) -> 476 | K39: =+CHOOSE(Bilance!$W$41,G!K9,G!K16,G!K23,G!K30) -> 503 | L39: =+CHOOSE(Bilance!$W$41,G!L9,G!L16,G!L23,G!L30) -> 502 | M39: =+CHOOSE(Bilance!$W$41,G!M9,G!M16,G!M23,G!M30) -> 458 | N39: =+CHOOSE(Bilance!$W$41,G!N9,G!N16,G!N23,G!N30) -> 424
B40: 75 | C40: =+CHOOSE(Bilance!$W$41,G!C10,G!C17,G!C24,G!C31) -> 463 | D40: =+CHOOSE(Bilance!$W$41,G!D10,G!D17,G!D24,G!D31) -> 509 | E40: =+CHOOSE(Bilance!$W$41,G!E10,G!E17,G!E24,G!E31) -> 500 | F40: =+CHOOSE(Bilance!$W$41,G!F10,G!F17,G!F24,G!F31) -> 437 | G40: =+CHOOSE(Bilance!$W$41,G!G10,G!G17,G!G24,G!G31) -> 394 | H40: =+CHOOSE(Bilance!$W$41,G!H10,G!H17,G!H24,G!H31) -> 379 | I40: =+CHOOSE(Bilance!$W$41,G!I10,G!I17,G!I24,G!I31) -> 381 | J40: =+CHOOSE(Bilance!$W$41,G!J10,G!J17,G!J24,G!J31) -> 411 | K40: =+CHOOSE(Bilance!$W$41,G!K10,G!K17,G!K24,G!K31) -> 461 | L40: =+CHOOSE(Bilance!$W$41,G!L10,G!L17,G!L24,G!L31) -> 488 | M40: =+CHOOSE(Bilance!$W$41,G!M10,G!M17,G!M24,G!M31) -> 462 | N40: =+CHOOSE(Bilance!$W$41,G!N10,G!N17,G!N24,G!N31) -> 436
B41: 90 | C41: =+CHOOSE(Bilance!$W$41,G!C11,G!C18,G!C25,G!C32) -> 443 | D41: =+CHOOSE(Bilance!$W$41,G!D11,G!D18,G!D25,G!D32) -> 473 | E41: =+CHOOSE(Bilance!$W$41,G!E11,G!E18,G!E25,G!E32) -> 438 | F41: =+CHOOSE(Bilance!$W$41,G!F11,G!F18,G!F25,G!F32) -> 355 | G41: =+CHOOSE(Bilance!$W$41,G!G11,G!G18,G!G25,G!G32) -> 299 | H41: =+CHOOSE(Bilance!$W$41,G!H11,G!H18,G!H25,G!H32) -> 279 | I41: =+CHOOSE(Bilance!$W$41,G!I11,G!I18,G!I25,G!I32) -> 285 | J41: =+CHOOSE(Bilance!$W$41,G!J11,G!J18,G!J25,G!J32) -> 325 | K41: =+CHOOSE(Bilance!$W$41,G!K11,G!K18,G!K25,G!K32) -> 393 | L41: =+CHOOSE(Bilance!$W$41,G!L11,G!L18,G!L25,G!L32) -> 444 | M41: =+CHOOSE(Bilance!$W$41,G!M11,G!M18,G!M25,G!M32) -> 438 | N41: =+CHOOSE(Bilance!$W$41,G!N11,G!N18,G!N25,G!N32) -> 421
B43: zvolený sklon | D43: =CHOOSE(Bilance!$V$41,0,15,30,45,60,75,90) -> 90
C44: Led | D44: Úno | E44: Bře | F44: Dub | G44: Kvě | H44: Čvn | I44: Čvc | J44: Srp | K44: Zář | L44: Říj | M44: Lis | N44: Pro
C45: =VLOOKUP($D$43,$B$35:$N$41,2,FALSE) -> 443 | D45: =VLOOKUP($D$43,$B$35:$N$41,3,FALSE) -> 473 | E45: =VLOOKUP($D$43,$B$35:$N$41,4,FALSE) -> 438 | F45: =VLOOKUP($D$43,$B$35:$N$41,5,FALSE) -> 355 | G45: =VLOOKUP($D$43,$B$35:$N$41,6,FALSE) -> 299 | H45: =VLOOKUP($D$43,$B$35:$N$41,7,FALSE) -> 279 | I45: =VLOOKUP($D$43,$B$35:$N$41,8,FALSE) -> 285 | J45: =VLOOKUP($D$43,$B$35:$N$41,9,FALSE) -> 325 | K45: =VLOOKUP($D$43,$B$35:$N$41,10,FALSE) -> 393 | L45: =VLOOKUP($D$43,$B$35:$N$41,11,FALSE) -> 444 | M45: =VLOOKUP($D$43,$B$35:$N$41,12,FALSE) -> 438 | N45: =VLOOKUP($D$43,$B$35:$N$41,13,FALSE) -> 421

Sheet BAZ (hidden)
A1: Výparné teplo vody | B1: Iw | C1: 250000 | D1: J/kg | I1: tv,p | J1: tw,p | K1: p"d,w,p | L1: p"d,v,p | M1: pd,v,p | N1: QBV | R1: te,s | S1: tw,p | T1: p"d,w,p | U1: p"d,v,p | V1: pd,v,p | W1: Hmes | X1: Qbv,p
A2: Relativní vlhkost vzduchu v době provozu | B2: fv,p | C2: 0.65 | G2: Vnitřní provoz | H2: Leden | I2: =Bilance!$N$29 -> 28 | J2: =Bilance!$N$28 -> 28 | K2: =+EXP(23.58-(4044.2/(235.6+J2))) -> 3781.268714 | L2: =+EXP(23.58-(4044.2/(235.6+I2))) -> 3781.268714 | M2: =+L2*$C$2 -> 2457.824664 | N2: =I30/1000*Bilance!$N$27*($C$5*Bilance!$N$26*(K2-M2)*$C$1/3600+$C$7*Bilance!$N$26*(J2-I2)) -> 123.9350209 | P2: Vnější | Q2: Leden | R2: 1.8 | S2: =Bilance!$N$28 -> 28 | T2: =+EXP(23.58-(4044.2/(235.6+S2))) -> 3781.268714 | U2: =+EXP(23.58-(4044.2/(235.6+R2))) -> 695.4900331 | V2: =+U2*$C$4 -> 347.7450166 | W2: 20.8 | X2: =+I30/1000*Bilance!$N$27*($C$5*Bilance!$N$26*(T2-V2)*$C$1/3600+$C$8*Bilance!$N$26*(S2-R2))-0.7*W2*Bilance!$N$26 -> 1966.985188
A3: Relativní vlhkost vzduchu mimo provoz | B3: fv,n | C3: 0.65 | G3: 1) | H3: Únor | I3: =Bilance!$N$29 -> 28 | J3: =Bilance!$N$28 -> 28 | K3: =+EXP(23.58-(4044.2/(235.6+J3))) -> 3781.268714 | L3: =+EXP(23.58-(4044.2/(235.6+I3))) -> 3781.268714 | M3: =+L3*$C$2 -> 2457.824664 | N3: =I31/1000*Bilance!$N$27*($C$5*Bilance!$N$26*(K3-M3)*$C$1/3600+$C$7*Bilance!$N$26*(J3-I3)) -> 111.9413092 | P3: 3) | Q3: Únor | R3: 2.7 | S3: =Bilance!$N$28 -> 28 | T3: =+EXP(23.58-(4044.2/(235.6+S3))) -> 3781.268714 | U3: =+EXP(23.58-(4044.2/(235.6+R3))) -> 741.7076024 | V3: =+U3*$C$4 -> 370.8538012 | W3: 37 | X3: =+I31/1000*Bilance!$N$27*($C$5*Bilance!$N$26*(T3-V3)*$C$1/3600+$C$8*Bilance!$N$26*(S3-R3))-0.7*W3*Bilance!$N$26 -> 1558.614261
A4: Relativní venkovní vlhkost (venkovní bazén) | B4: fv,e | C4: 0.5 | H4: Březen | I4: =Bilance!$N$29 -> 28 | J4: =Bilance!$N$28 -> 28 | K4: 3781.268714 | L4: 3781.268714 | M4: 2457.824664 | N4: =I32/1000*Bilance!$N$27*($C$5*Bilance!$N$26*(K4-M4)*$C$1/3600+$C$7*Bilance!$N$26*(J4-I4)) -> 123.9350209 | Q4: Březen | R4: 6.3 | S4: =Bilance!$N$28 -> 28 | T4: 3781.268714 | U4: 954.8185188 | V4: 477.4092594 | W4: 72.2 | X4: =+I32/1000*Bilance!$N$27*($C$5*Bilance!$N$26*(T4-V4)*$C$1/3600+$C$8*Bilance!$N$26*(S4-R4))-0.7*W4*Bilance!$N$26 -> 1191.217672
A5: Součinitel přenosu hmoty pro vnitřní bazény v době provozu | B5: bp | C5: =+CHOOSE(Bilance!AG31,0.00016,0.00016,0.00029,0.00029) -> 0.00029 | D5: kg/h.m2Pa | H5: Duben | I5: =Bilance!$N$29 -> 28 | J5: =Bilance!$N$28 -> 28 | K5: 3781.268714 | L5: 3781.268714 | M5: 2457.824664 | N5: =I33/1000*Bilance!$N$27*($C$5*Bilance!$N$26*(K5-M5)*$C$1/3600+$C$7*Bilance!$N$26*(J5-I5)) -> 119.937117 | Q5: Duben | R5: 10.7 | S5: =Bilance!$N$28 -> 28 | T5: 3781.268714 | U5: 1287.151304 | V5: 643.5756521 | W5: 113.8 | X5: =+I33/1000*Bilance!$N$27*($C$5*Bilance!$N$26*(T5-V5)*$C$1/3600+$C$8*Bilance!$N$26*(S5-R5))-0.7*W5*Bilance!$N$26 -> 456.3534338
A6: Součinitel přenosu hmoty pro vnitřní bazény mimo provoz | B6: bn | C6: =+CHOOSE(Bilance!AG31,0,C5,0,C5) -> 0 | D6: kg/h.m2Pa | H6: Květen | I6: =Bilance!$N$29 -> 28 | J6: =Bilance!$N$28 -> 28 | K6: 3781.268714 | L6: 3781.268714 | M6: 2457.824664 | N6: =I34/1000*Bilance!$N$27*($C$5*Bilance!$N$26*(K6-M6)*$C$1/3600+$C$7*Bilance!$N$26*(J6-I6)) -> 123.9350209 | Q6: Květen | R6: 16 | S6: =Bilance!$N$28 -> 28 | T6: 3781.268714 | U6: 1819.056305 | V6: 909.5281526 | W6: 148.8 | X6: =+I34/1000*Bilance!$N$27*($C$5*Bilance!$N$26*(T6-V6)*$C$1/3600+$C$8*Bilance!$N$26*(S6-R6))-0.7*W6*Bilance!$N$26 -> -196.073462
A7: součinitel přestupu tepla mezi okolním prostředím a hladinou bazénu sáláním a prouděním | B7: hi | C7: 10 | D7: W/m2K | H7: Červen | I7: =Bilance!$N$29 -> 28 | J7: =Bilance!$N$28 -> 28 | K7: 3781.268714 | L7: 3781.268714 | M7: 2457.824664 | N7: =I35/1000*Bilance!$N$27*($C$5*Bilance!$N$26*(K7-M7)*$C$1/3600+$C$7*Bilance!$N$26*(J7-I7)) -> 119.937117 | Q7: Červen | R7: 18.6 | S7: =Bilance!$N$28 -> 28 | T7: 3781.268714 | U7: 2144.110236 | V7: 1072.055118 | W7: 146.2 | X7: =+I35/1000*Bilance!$N$27*($C$5*Bilance!$N$26*(T7-V7)*$C$1/3600+$C$8*Bilance!$N$26*(S7-R7))-0.7*W7*Bilance!$N$26 -> -399.2275178
A8: součinitel přestupu tepla mezi okolním prostředím a hladinou bazénu sáláním a prouděním | B8: he | C8: 15 | D8: W/m2K | H8: Červenec | I8: =Bilance!$N$29 -> 28 | J8: =Bilance!$N$28 -> 28 | K8: 3781.268714 | L8: 3781.268714 | M8: 2457.824664 | N8: =I36/1000*Bilance!$N$27*($C$5*Bilance!$N$26*(K8-M8)*$C$1/3600+$C$7*Bilance!$N$26*(J8-I8)) -> 123.9350209 | Q8: Červenec | R8: 20.5 | S8: =Bilance!$N$28 -> 28 | T8: 3781.268714 | U8: 2412.725499 | V8: 1206.362749 | W8: 144.3 | X8: =+I36/1000*Bilance!$N$27*($C$5*Bilance!$N$26*(T8-V8)*$C$1/3600+$C$8*Bilance!$N$26*(S8-R8))-0.7*W8*Bilance!$N$26 -> -498.3707852
A9: Hodinová kapacita bazénu - vnitřní | B9: kb,i | C9: =1.5*Bilance!N26/5 -> 3.75 | D9: os/hod | H9: Srpen | I9: =Bilance!$N$29 -> 28 | J9: =Bilance!$N$28 -> 28 | K9: 3781.268714 | L9: 3781.268714 | M9: 2457.824664 | N9: =I37/1000*Bilance!$N$27*($C$5*Bilance!$N$26*(K9-M9)*$C$1/3600+$C$7*Bilance!$N$26*(J9-I9)) -> 123.9350209 | Q9: Srpen | R9: 21.1 | S9: =Bilance!$N$28 -> 28 | T9: 3781.268714 | U9: 2503.444024 | V9: 1251.722012 | W9: 136.2 | X9: =+I37/1000*Bilance!$N$27*($C$5*Bilance!$N$26*(T9-V9)*$C$1/3600+$C$8*Bilance!$N$26*(S9-R9))-0.7*W9*Bilance!$N$26 -> -473.5934911
A10: Hodinová kapacita bazénu - venkovní | B10: kb,e | C10: =3*Bilance!N26/5 -> 7.5 | D10: os/hod | H10: Září | I10: =Bilance!$N$29 -> 28 | J10: =Bilance!$N$28 -> 28 | K10: 3781.268714 | L10: 3781.268714 | M10: 2457.824664 | N10: =I38/1000*Bilance!$N$27*($C$5*Bilance!$N$26*(K10-M10)*$C$1/3600+$C$7*Bilance!$N$26*(J10-I10)) -> 119.937117 | Q10: Září | R10: 17.1 | S10: =Bilance!$N$28 -> 28 | T10: 3781.268714 | U10: 1950.893474 | V10: 975.446737 | W10: 87.1 | X10: =+I38/1000*Bilance!$N$27*($C$5*Bilance!$N$26*(T10-V10)*$C$1/3600+$C$8*Bilance!$N$26*(S10-R10))-0.7*W10*Bilance!$N$26 -> 227.9026167
A11: Měrná potřeba přiváděné čísté vody na návštěvníka | B11: VSV,os | C11: 0.03 | D11: m2/os | H11: Říjen | I11: =Bilance!$N$29 -> 28 | J11: =Bilance!$N$28 -> 28 | K11: 3781.268714 | L11: 3781.268714 | M11: 2457.824664 | N11: =I39/1000*Bilance!$N$27*($C$5*Bilance!$N$26*(K11-M11)*$C$1/3600+$C$7*Bilance!$N$26*(J11-I11)) -> 123.9350209 | Q11: Říjen | R11: 11.7 | S11: =Bilance!$N$28 -> 28 | T11: 3781.268714 | U11: 1375.514466 | V11: 687.7572332 | W11: 56.5 | X11: =+I39/1000*Bilance!$N$27*($C$5*Bilance!$N$26*(T11-V11)*$C$1/3600+$C$8*Bilance!$N$26*(S11-R11))-0.7*W11*Bilance!$N$26 -> 932.2444606
H12: Listopad | I12: =Bilance!$N$29 -> 28 | J12: =Bilance!$N$28 -> 28 | K12: 3781.268714 | L12: 3781.268714 | M12: 2457.824664 | N12: =I40/1000*Bilance!$N$27*($C$5*Bilance!$N$26*(K12-M12)*$C$1/3600+$C$7*Bilance!$N$26*(J12-I12)) -> 119.937117 | Q12: Listopad | R12: 6.4 | S12: =Bilance!$N$28 -> 28 | T12: 3781.268714 | U12: 961.4376844 | V12: 480.7188422 | W12: 25.2 | X12: =+I40/1000*Bilance!$N$27*($C$5*Bilance!$N$26*(T12-V12)*$C$1/3600+$C$8*Bilance!$N$26*(S12-R12))-0.7*W12*Bilance!$N$26 -> 1536.612332
H13: Prosinec | I13: =Bilance!$N$29 -> 28 | J13: =Bilance!$N$28 -> 28 | K13: 3781.268714 | L13: 3781.268714 | M13: 2457.824664 | N13: =I41/1000*Bilance!$N$27*($C$5*Bilance!$N$26*(K13-M13)*$C$1/3600+$C$7*Bilance!$N$26*(J13-I13)) -> 123.9350209 | Q13: Prosinec | R13: 3.6 | S13: =Bilance!$N$28 -> 28 | T13: 3781.268714 | U13: 790.6136093 | V13: 395.3068046 | W13: 14.9 | X13: =+I41/1000*Bilance!$N$27*($C$5*Bilance!$N$26*(T13-V13)*$C$1/3600+$C$8*Bilance!$N$26*(S13-R13))-0.7*W13*Bilance!$N$26 -> 1888.606225
I14: tv,n | J14: tw,n | K14: p"d,w,n | L14: p"d,v,n | M14: pd,v,n | N14: QBV | R14: te,n | S14: tw,n | T14: p"d,w,n | U14: p"d,v,n | V14: pd,v,n | X14: Qbv,n
G15: Vnitřní mimo | H15: Leden | I15: =Bilance!$N$31 -> 20 | J15: =Bilance!$N$30 -> 24 | K15: =+EXP(23.58-(4044.2/(235.6+J15))) -> 2985.186687 | L15: =+EXP(23.58-(4044.2/(235.6+I15))) -> 2339.33337 | M15: =+L15*$C$3 -> 1520.566691 | N15: =I30/1000*(24-Bilance!$N$27)*($C$6*Bilance!$N$26*(K15-M15)*BAZ!$C$1/3600+$C$7*Bilance!$N$26*(J15-I15)) -> 186 | P15: Vnější | Q15: Leden | R15: -2.9 | S15: =Bilance!$N$30 -> 24 | T15: =+EXP(23.58-(4044.2/(235.6+S15))) -> 2985.186687 | U15: 493.015922 | V15: =+U15*$C$4 -> 246.507961 | X15: =I30/1000*(24-Bilance!$N$27)*($C$6*Bilance!$N$26*(T15-V15)*$C$1/3600+$C$8*Bilance!$N$26*(S15-R15)) -> 1876.275
G16: 2) | H16: Únor | I16: =Bilance!$N$31 -> 20 | J16: =Bilance!$N$30 -> 24 | K16: =+EXP(23.58-(4044.2/(235.6+J16))) -> 2985.186687 | L16: =+EXP(23.58-(4044.2/(235.6+I16))) -> 2339.33337 | M16: =+L16*$C$3 -> 1520.566691 | N16: =I31/1000*(24-Bilance!$N$27)*($C$6*Bilance!$N$26*(K16-M16)*BAZ!$C$1/3600+$C$7*Bilance!$N$26*(J16-I16)) -> 168 | P16: 4) | Q16: Únor | R16: -2.1 | S16: =Bilance!$N$30 -> 24 | T16: =+EXP(23.58-(4044.2/(235.6+S16))) -> 2985.186687 | U16: 523.2637574 | V16: =+U16*$C$4 -> 261.6318787 | X16: =I31/1000*(24-Bilance!$N$27)*($C$6*Bilance!$N$26*(T16-V16)*$C$1/3600+$C$8*Bilance!$N$26*(S16-R16)) -> 1644.3
H17: Březen | I17: =Bilance!$N$31 -> 20 | J17: =Bilance!$N$30 -> 24 | K17: 2985.186687 | L17: 2339.33337 | M17: 1520.566691 | N17: =I32/1000*(24-Bilance!$N$27)*($C$6*Bilance!$N$26*(K17-M17)*BAZ!$C$1/3600+$C$7*Bilance!$N$26*(J17-I17)) -> 186 | Q17: Březen | R17: 1.1 | S17: =Bilance!$N$30 -> 24 | T17: 2985.186687 | U17: 661.3197313 | V17: 330.6598656 | X17: =I32/1000*(24-Bilance!$N$27)*($C$6*Bilance!$N$26*(T17-V17)*$C$1/3600+$C$8*Bilance!$N$26*(S17-R17)) -> 1597.275
H18: Duben | I18: =Bilance!$N$31 -> 20 | J18: =Bilance!$N$30 -> 24 | K18: 2985.186687 | L18: 2339.33337 | M18: 1520.566691 | N18: =I33/1000*(24-Bilance!$N$27)*($C$6*Bilance!$N$26*(K18-M18)*BAZ!$C$1/3600+$C$7*Bilance!$N$26*(J18-I18)) -> 180 | Q18: Duben | R18: 4.5 | S18: =Bilance!$N$30 -> 24 | T18: 2985.186687 | U18: 842.3410022 | V18: 421.1705011 | X18: =I33/1000*(24-Bilance!$N$27)*($C$6*Bilance!$N$26*(T18-V18)*$C$1/3600+$C$8*Bilance!$N$26*(S18-R18)) -> 1316.25
H19: Květen | I19: =Bilance!$N$31 -> 20 | J19: =Bilance!$N$30 -> 24 | K19: 2985.186687 | L19: 2339.33337 | M19: 1520.566691 | N19: =I34/1000*(24-Bilance!$N$27)*($C$6*Bilance!$N$26*(K19-M19)*BAZ!$C$1/3600+$C$7*Bilance!$N$26*(J19-I19)) -> 186 | Q19: Květen | R19: 8.8 | S19: =Bilance!$N$30 -> 24 | T19: 2985.186687 | U19: 1132.900939 | V19: 566.4504696 | X19: =I34/1000*(24-Bilance!$N$27)*($C$6*Bilance!$N$26*(T19-V19)*$C$1/3600+$C$8*Bilance!$N$26*(S19-R19)) -> 1060.2
H20: Červen | I20: =Bilance!$N$31 -> 20 | J20: =Bilance!$N$30 -> 24 | K20: 2985.186687 | L20: 2339.33337 | M20: 1520.566691 | N20: =I35/1000*(24-Bilance!$N$27)*($C$6*Bilance!$N$26*(K20-M20)*BAZ!$C$1/3600+$C$7*Bilance!$N$26*(J20-I20)) -> 180 | Q20: Červen | R20: 11.1 | S20: =Bilance!$N$30 -> 24 | T20: 2985.186687 | U20: 1321.879532 | V20: 660.9397659 | X20: =I35/1000*(24-Bilance!$N$27)*($C$6*Bilance!$N$26*(T20-V20)*$C$1/3600+$C$8*Bilance!$N$26*(S20-R20)) -> 870.75
H21: Červenec | I21: =Bilance!$N$31 -> 20 | J21: =Bilance!$N$30 -> 24 | K21: 2985.186687 | L21: 2339.33337 | M21: 1520.566691 | N21: =I36/1000*(24-Bilance!$N$27)*($C$6*Bilance!$N$26*(K21-M21)*BAZ!$C$1/3600+$C$7*Bilance!$N$26*(J21-I21)) -> 186 | Q21: Červenec | R21: 13 | S21: =Bilance!$N$30 -> 24 | T21: 2985.186687 | U21: 1498.319999 | V21: 749.1599994 | X21: =I36/1000*(24-Bilance!$N$27)*($C$6*Bilance!$N$26*(T21-V21)*$C$1/3600+$C$8*Bilance!$N$26*(S21-R21)) -> 767.25
H22: Srpen | I22: =Bilance!$N$31 -> 20 | J22: =Bilance!$N$30 -> 24 | K22: 2985.186687 | L22: 2339.33337 | M22: 1520.566691 | N22: =I37/1000*(24-Bilance!$N$27)*($C$6*Bilance!$N$26*(K22-M22)*BAZ!$C$1/3600+$C$7*Bilance!$N$26*(J22-I22)) -> 186 | Q22: Srpen | R22: 13.4 | S22: =Bilance!$N$30 -> 24 | T22: 2985.186687 | U22: 1537.991974 | V22: 768.9959871 | X22: =I37/1000*(24-Bilance!$N$27)*($C$6*Bilance!$N$26*(T22-V22)*$C$1/3600+$C$8*Bilance!$N$26*(S22-R22)) -> 739.35
H23: Září | I23: =Bilance!$N$31 -> 20 | J23: =Bilance!$N$30 -> 24 | K23: 2985.186687 | L23: 2339.33337 | M23: 1520.566691 | N23: =I38/1000*(24-Bilance!$N$27)*($C$6*Bilance!$N$26*(K23-M23)*BAZ!$C$1/3600+$C$7*Bilance!$N$26*(J23-I23)) -> 180 | Q23: Září | R23: 9.9 | S23: =Bilance!$N$30 -> 24 | T23: 2985.186687 | U23: 1220.090413 | V23: 610.0452067 | X23: =I38/1000*(24-Bilance!$N$27)*($C$6*Bilance!$N$26*(T23-V23)*$C$1/3600+$C$8*Bilance!$N$26*(S23-R23)) -> 951.75
H24: Říjen | I24: =Bilance!$N$31 -> 20 | J24: =Bilance!$N$30 -> 24 | K24: 2985.186687 | L24: 2339.33337 | M24: 1520.566691 | N24: =I39/1000*(24-Bilance!$N$27)*($C$6*Bilance!$N$26*(K24-M24)*BAZ!$C$1/3600+$C$7*Bilance!$N$26*(J24-I24)) -> 186 | Q24: Říjen | R24: 5.4 | S24: =Bilance!$N$30 -> 24 | T24: 2985.186687 | U24: 897.028054 | V24: 448.514027 | X24: =I39/1000*(24-Bilance!$N$27)*($C$6*Bilance!$N$26*(T24-V24)*$C$1/3600+$C$8*Bilance!$N$26*(S24-R24)) -> 1297.35
H25: Listopad | I25: =Bilance!$N$31 -> 20 | J25: =Bilance!$N$30 -> 24 | K25: 2985.186687 | L25: 2339.33337 | M25: 1520.566691 | N25: =I40/1000*(24-Bilance!$N$27)*($C$6*Bilance!$N$26*(K25-M25)*BAZ!$C$1/3600+$C$7*Bilance!$N$26*(J25-I25)) -> 180 | Q25: Listopad | R25: 1.3 | S25: =Bilance!$N$30 -> 24 | T25: 2985.186687 | U25: 670.9280362 | V25: 335.4640181 | X25: =I40/1000*(24-Bilance!$N$27)*($C$6*Bilance!$N$26*(T25-V25)*$C$1/3600+$C$8*Bilance!$N$26*(S25-R25)) -> 1532.25
H26: Prosinec | I26: =Bilance!$N$31 -> 20 | J26: =Bilance!$N$30 -> 24 | K26: 2985.186687 | L26: 2339.33337 | M26: 1520.566691 | N26: =I41/1000*(24-Bilance!$N$27)*($C$6*Bilance!$N$26*(K26-M26)*BAZ!$C$1/3600+$C$7*Bilance!$N$26*(J26-I26)) -> 186 | Q26: Prosinec | R26: -1.1 | S26: =Bilance!$N$30 -> 24 | T26: 2985.186687 | U26: 563.3744828 | V26: 281.6872414 | X26: =I41/1000*(24-Bilance!$N$27)*($C$6*Bilance!$N$26*(T26-V26)*$C$1/3600+$C$8*Bilance!$N$26*(S26-R26)) -> 1750.725
K28: Qb,v | L28: Qb,v | M28: k | N28: Qsv | O28: Qb,v,celk | P28: Qb,v,celk
K29: Vnitřní | L29: Vnější | M29: osob | O29: Vnitřní | P29: Vnější
H30: Leden | I30: 31 | K30: =+N2+N15 -> 309.9350209 | L30: =+X2+X15 -> 3843.260188 | M30: =Bilance!$N$32 -> 120 | N30: =+M30*$C$11*1000*4187*(Bilance!$N$28-10)/3600000 -> 75.366 | O30: =N30+K30 -> 385.3010209 | P30: =N30+L30 -> 3918.626188
H31: Únor | I31: 28 | K31: 279.9413092 | L31: 3202.914261 | M31: =Bilance!$N$32 -> 120 | N31: =+M31*$C$11*1000*4187*(Bilance!$N$28-10)/3600000 -> 75.366 | O31: =N31+K31 -> 355.3073092 | P31: =N31+L31 -> 3278.280261
H32: Březen | I32: 31 | K32: 309.9350209 | L32: 2788.492672 | M32: =Bilance!$N$32 -> 120 | N32: =+M32*$C$11*1000*4187*(Bilance!$N$28-10)/3600000 -> 75.366 | O32: 385.3010209 | P32: 2863.858672
H33: Duben | I33: 30 | K33: 299.937117 | L33: 1772.603434 | M33: =Bilance!$N$32 -> 120 | N33: =+M33*$C$11*1000*4187*(Bilance!$N$28-10)/3600000 -> 75.366 | O33: 375.303117 | P33: 1847.969434
H34: Květen | I34: 31 | K34: 309.9350209 | L34: 864.126538 | M34: =Bilance!$N$32 -> 120 | N34: =+M34*$C$11*1000*4187*(Bilance!$N$28-10)/3600000 -> 75.366 | O34: 385.3010209 | P34: 939.492538
H35: Červen | I35: 30 | K35: 299.937117 | L35: 471.5224822 | M35: =Bilance!$N$32 -> 120 | N35: =+M35*$C$11*1000*4187*(Bilance!$N$28-10)/3600000 -> 75.366 | O35: 375.303117 | P35: 546.8884822
H36: Červenec | I36: 31 | K36: 309.9350209 | L36: 268.8792148 | M36: =Bilance!$N$32 -> 120 | N36: =+M36*$C$11*1000*4187*(Bilance!$N$28-10)/3600000 -> 75.366 | O36: 385.3010209 | P36: 344.2452148
H37: Srpen | I37: 31 | K37: 309.9350209 | L37: 265.7565089 | M37: =Bilance!$N$32 -> 120 | N37: =+M37*$C$11*1000*4187*(Bilance!$N$28-10)/3600000 -> 75.366 | O37: 385.3010209 | P37: 341.1225089
H38: Září | I38: 30 | K38: 299.937117 | L38: 1179.652617 | M38: =Bilance!$N$32 -> 120 | N38: =+M38*$C$11*1000*4187*(Bilance!$N$28-10)/3600000 -> 75.366 | O38: 375.303117 | P38: 1255.018617
H39: Říjen | I39: 31 | K39: 309.9350209 | L39: 2229.594461 | M39: =Bilance!$N$32 -> 120 | N39: =+M39*$C$11*1000*4187*(Bilance!$N$28-10)/3600000 -> 75.366 | O39: 385.3010209 | P39: 2304.960461
H40: Listopad | I40: 30 | K40: 299.937117 | L40: 3068.862332 | M40: =Bilance!$N$32 -> 120 | N40: =+M40*$C$11*1000*4187*(Bilance!$N$28-10)/3600000 -> 75.366 | O40: 375.303117 | P40: 3144.228332
H41: Prosinec | I41: 31 | K41: 309.9350209 | L41: 3639.331225 | M41: =Bilance!$N$32 -> 120 | N41: =+M41*$C$11*1000*4187*(Bilance!$N$28-10)/3600000 -> 75.366 | O41: 385.3010209 | P41: 3714.697225
